[Event "Titled Tuesday Blitz February 07 Early 2023"]
[White "Womacka, Mathias"]
[Black "Van den Dikkenberg, Erik"]
[WhiteFideId "4611390"]
[BlackFideId "1005880"]
[WhiteElo "2396"]
[BlackElo "2091"]
[Result "0-1"]
[Round "04"]
[TimeControl "180+2"]
[Date "2023.02.07"]
[WhiteClock "0:00:02"]
[BlackClock "0:00:10"]

1. e4 {[%clk 0:03:00]}  c5 {[%clk 0:02:59]} 2. Nf3 {[%clk 0:03:00]}  d6 {[%clk 0:02:59]} 3. d4 {[%clk 0:03:00]}  cxd4 {[%clk 0:03:00]} 4. Nxd4 {[%clk 0:03:01]}  Nf6 {[%clk 0:03:00]} 5. c3 {[%clk 0:03:01]}  Nxe4 {[%clk 0:02:53]} 6. Bc4 {[%clk 0:02:52]}  Nc6 {[%clk 0:02:49]} 7. Qh5 {[%clk 0:02:32]}  g6 {[%clk 0:02:38]} 8. Qd5 {[%clk 0:02:24]}  Be6 {[%clk 0:02:38]} 9. Nxe6 {[%clk 0:02:23]}  fxe6 {[%clk 0:02:36]} 10. Qxe6 {[%clk 0:02:06]}  Nc5 {[%clk 0:02:23]} 11. Qf7+ {[%clk 0:01:59]}  Kd7 {[%clk 0:02:23]} 12. Be3 {[%clk 0:01:25]}  Ne5 {[%clk 0:02:17]} 13. Bb5+ {[%clk 0:01:25]}  Kc7 {[%clk 0:02:10]} 14. Qd5 {[%clk 0:01:24]}  e6 {[%clk 0:01:58]} 15. Qd2 {[%clk 0:01:15]}  a6 {[%clk 0:01:50]} 16. Be2 {[%clk 0:01:14]}  Qf6 {[%clk 0:01:37]} 17. O-O {[%clk 0:01:12]}  Be7 {[%clk 0:01:35]} 18. Na3 {[%clk 0:01:08]}  Rad8 {[%clk 0:01:31]} 19. f4 {[%clk 0:00:59]}  Nc6 {[%clk 0:01:30]} 20. Nc4 {[%clk 0:00:52]}  Rhf8 {[%clk 0:01:25]} 21. b4 {[%clk 0:00:44]}  Ne4 {[%clk 0:01:22]} 22. Qc2 {[%clk 0:00:44]}  d5 {[%clk 0:01:20]} 23. Bb6+ {[%clk 0:00:40]}  Kb8 {[%clk 0:01:12]} 24. Bxd8 {[%clk 0:00:40]}  Rxd8 {[%clk 0:01:11]} 25. Rac1 {[%clk 0:00:20]}  Nxc3 {[%clk 0:00:57]} 26. Qxc3 {[%clk 0:00:19]}  Qxc3 {[%clk 0:00:57]} 27. Rxc3 {[%clk 0:00:18]}  Bxb4 {[%clk 0:00:54]} 28. Rcc1 {[%clk 0:00:12]}  dxc4 {[%clk 0:00:45]} 29. Bxc4 {[%clk 0:00:13]}  Nd4 {[%clk 0:00:44]} 30. Rcd1 {[%clk 0:00:10]}  Bc5 {[%clk 0:00:43]} 31. Kh1 {[%clk 0:00:10]}  b5 {[%clk 0:00:40]} 32. Bd3 {[%clk 0:00:08]}  Kc7 {[%clk 0:00:38]} 33. Be4 {[%clk 0:00:08]}  Kb6 {[%clk 0:00:32]} 34. Rd3 {[%clk 0:00:08]}  Rf8 {[%clk 0:00:28]} 35. g3 {[%clk 0:00:08]}  a5 {[%clk 0:00:25]} 36. Rfd1 {[%clk 0:00:08]}  Rd8 {[%clk 0:00:24]} 37. Kg2 {[%clk 0:00:07]}  b4 {[%clk 0:00:24]} 38. h4 {[%clk 0:00:05]}  a4 {[%clk 0:00:24]} 39. h5 {[%clk 0:00:05]}  gxh5 {[%clk 0:00:23]} 40. Rh1 {[%clk 0:00:05]}  b3 {[%clk 0:00:19]} 41. axb3 {[%clk 0:00:05]}  axb3 {[%clk 0:00:19]} 42. Rxh5 {[%clk 0:00:04]}  b2 {[%clk 0:00:18]} 43. Rd1 {[%clk 0:00:04]}  Rg8 {[%clk 0:00:13]} 44. Rxh7 {[%clk 0:00:03]}  Nf5 {[%clk 0:00:13]} 45. Rb7+ {[%clk 0:00:02]}  Ka6 {[%clk 0:00:10]} 0-1


[Site "https://www.chess.com"]

[Event "Titled Tuesday Blitz February 07 Early 2023"]
[White "Stolz, Mike"]
[Black "Herman, Daniel"]
[WhiteFideId "4617134"]
[BlackFideId "30935008"]
[WhiteElo "2330"]
[BlackElo "1956"]
[Result "0-1"]
[Round "04"]
[TimeControl "180+2"]
[Date "2023.02.07"]
[WhiteClock "0:00:27"]
[BlackClock "0:00:07"]

1. e4 {[%clk 0:03:00]}  e5 {[%clk 0:02:56]} 2. Nf3 {[%clk 0:03:00]}  Nc6 {[%clk 0:02:56]} 3. Bb5 {[%clk 0:02:59]}  a6 {[%clk 0:02:56]} 4. Ba4 {[%clk 0:02:59]}  Nf6 {[%clk 0:02:56]} 5. O-O {[%clk 0:02:59]}  b5 {[%clk 0:02:52]} 6. Bb3 {[%clk 0:02:59]}  Bc5 {[%clk 0:02:53]} 7. c3 {[%clk 0:02:58]}  d6 {[%clk 0:02:32]} 8. a4 {[%clk 0:02:58]}  Bb7 {[%clk 0:02:30]} 9. d4 {[%clk 0:02:53]}  Bb6 {[%clk 0:02:27]} 10. d5 {[%clk 0:02:31]}  Ne7 {[%clk 0:02:13]} 11. a5 {[%clk 0:02:31]}  Ba7 {[%clk 0:02:05]} 12. Bc2 {[%clk 0:02:31]}  c6 {[%clk 0:02:01]} 13. dxc6 {[%clk 0:02:24]}  Bxc6 {[%clk 0:02:01]} 14. Bg5 {[%clk 0:02:24]}  Ng6 {[%clk 0:01:54]} 15. Nbd2 {[%clk 0:02:14]}  h6 {[%clk 0:01:52]} 16. Be3 {[%clk 0:02:00]}  Bxe3 {[%clk 0:01:49]} 17. fxe3 {[%clk 0:02:01]}  O-O {[%clk 0:01:43]} 18. Qe2 {[%clk 0:02:01]}  Qc7 {[%clk 0:01:40]} 19. h4 {[%clk 0:01:57]}  Qb7 {[%clk 0:01:34]} 20. Qd3 {[%clk 0:01:41]}  Rad8 {[%clk 0:01:21]} 21. Rad1 {[%clk 0:01:16]}  Rfe8 {[%clk 0:01:07]} 22. Kh1 {[%clk 0:01:11]}  Nf8 {[%clk 0:01:04]} 23. Nh2 {[%clk 0:01:05]}  Ne6 {[%clk 0:00:56]} 24. Rxf6 {[%clk 0:01:04]}  gxf6 {[%clk 0:00:57]} 25. Ng4 {[%clk 0:01:04]}  Kg7 {[%clk 0:00:38]} 26. Rf1 {[%clk 0:01:00]}  Nc5 {[%clk 0:00:36]} 27. Qe2 {[%clk 0:00:55]}  Nxe4 {[%clk 0:00:19]} 28. Nxe4 {[%clk 0:00:51]}  Bxe4 {[%clk 0:00:20]} 29. Nxf6 {[%clk 0:00:50]}  Bg6 {[%clk 0:00:11]} 30. Bxg6 {[%clk 0:00:49]}  fxg6 {[%clk 0:00:11]} 31. Nxe8+ {[%clk 0:00:48]}  Rxe8 {[%clk 0:00:12]} 32. Qf2 {[%clk 0:00:47]}  Qe7 {[%clk 0:00:12]} 33. e4 {[%clk 0:00:45]}  Rf8 {[%clk 0:00:12]} 34. Qxf8+ {[%clk 0:00:45]}  Qxf8 {[%clk 0:00:13]} 35. Rxf8 {[%clk 0:00:46]}  Kxf8 {[%clk 0:00:13]} 36. g4 {[%clk 0:00:46]}  Ke7 {[%clk 0:00:13]} 37. Kg2 {[%clk 0:00:43]}  Ke6 {[%clk 0:00:13]} 38. Kf3 {[%clk 0:00:43]}  d5 {[%clk 0:00:14]} 39. b3 {[%clk 0:00:39]}  d4 {[%clk 0:00:09]} 40. cxd4 {[%clk 0:00:37]}  exd4 {[%clk 0:00:10]} 41. Ke2 {[%clk 0:00:35]}  Ke5 {[%clk 0:00:10]} 42. Kd3 {[%clk 0:00:36]}  h5 {[%clk 0:00:06]} 43. g5 {[%clk 0:00:34]}  b4 {[%clk 0:00:05]} 44. Kc4 {[%clk 0:00:27]}  Kxe4 {[%clk 0:00:06]} 45. Kxb4 {[%clk 0:00:27]}  d3 {[%clk 0:00:07]} 0-1


[Site "https://www.chess.com"]

[Event "Titled Tuesday Blitz February 07 Early 2023"]
[White "Lopez Calderon, Alfonso Al"]
[Black "Hoffmann, Asa"]
[WhiteFideId "5116619"]
[BlackFideId "2001470"]
[WhiteElo "2120"]
[BlackElo "2185"]
[Result "1-0"]
[Round "04"]
[TimeControl "180+2"]
[Date "2023.02.07"]
[WhiteClock "0:00:09"]
[BlackClock "0:01:16"]

1. e4 {[%clk 0:03:00]}  d6 {[%clk 0:02:57]} 2. d4 {[%clk 0:02:59]}  Nf6 {[%clk 0:02:56]} 3. Nc3 {[%clk 0:03:00]}  c6 {[%clk 0:02:56]} 4. Be3 {[%clk 0:03:00]}  Ng4 {[%clk 0:02:55]} 5. Bg5 {[%clk 0:02:57]}  Qb6 {[%clk 0:02:55]} 6. Rb1 {[%clk 0:02:50]}  e5 {[%clk 0:02:52]} 7. Nf3 {[%clk 0:02:48]}  Nd7 {[%clk 0:02:46]} 8. Bc4 {[%clk 0:02:39]}  h6 {[%clk 0:02:40]} 9. Bh4 {[%clk 0:02:38]}  g5 {[%clk 0:02:36]} 10. Bg3 {[%clk 0:02:36]}  Bg7 {[%clk 0:02:35]} 11. dxe5 {[%clk 0:01:45]}  Ngxe5 {[%clk 0:02:31]} 12. Nxe5 {[%clk 0:01:36]}  Nxe5 {[%clk 0:02:29]} 13. Bb3 {[%clk 0:01:34]}  Qc7 {[%clk 0:02:08]} 14. O-O {[%clk 0:01:31]}  Be6 {[%clk 0:02:07]} 15. Bxe6 {[%clk 0:01:25]}  fxe6 {[%clk 0:02:06]} 16. Qh5+ {[%clk 0:01:24]}  Qf7 {[%clk 0:02:05]} 17. Qxf7+ {[%clk 0:01:21]}  Nxf7 {[%clk 0:02:02]} 18. f4 {[%clk 0:00:35]}  Bd4+ {[%clk 0:02:02]} 19. Kh1 {[%clk 0:00:35]}  Bxc3 {[%clk 0:02:01]} 20. bxc3 {[%clk 0:00:36]}  b6 {[%clk 0:02:01]} 21. fxg5 {[%clk 0:00:34]}  hxg5 {[%clk 0:01:59]} 22. Rf6 {[%clk 0:00:33]}  Ke7 {[%clk 0:01:57]} 23. Rbf1 {[%clk 0:00:33]}  Rh7 {[%clk 0:01:57]} 24. Rg6 {[%clk 0:00:24]}  Rf8 {[%clk 0:01:52]} 25. Rff6 {[%clk 0:00:23]}  Nd8 {[%clk 0:01:51]} 26. Rxf8 {[%clk 0:00:23]}  Kxf8 {[%clk 0:01:51]} 27. Bxd6+ {[%clk 0:00:23]}  Kf7 {[%clk 0:01:50]} 28. Rxg5 {[%clk 0:00:24]}  Rh4 {[%clk 0:01:47]} 29. e5 {[%clk 0:00:14]}  Nb7 {[%clk 0:01:42]} 30. h3 {[%clk 0:00:13]}  Rc4 {[%clk 0:01:40]} 31. Kh2 {[%clk 0:00:13]}  Rxc3 {[%clk 0:01:39]} 32. h4 {[%clk 0:00:13]}  Rxc2 {[%clk 0:01:38]} 33. h5 {[%clk 0:00:13]}  Rc4 {[%clk 0:01:35]} 34. g4 {[%clk 0:00:12]}  Rc2+ {[%clk 0:01:34]} 35. Kh3 {[%clk 0:00:13]}  Rc3+ {[%clk 0:01:33]} 36. Kh4 {[%clk 0:00:13]}  Rc1 {[%clk 0:01:33]} 37. Rg6 {[%clk 0:00:13]}  Nxd6 {[%clk 0:01:29]} 38. exd6 {[%clk 0:00:14]}  Rd1 {[%clk 0:01:28]} 39. Rh6 {[%clk 0:00:09]}  Rxd6 {[%clk 0:01:26]} 40. Rh7+ {[%clk 0:00:09]}  Kg8 {[%clk 0:01:26]} 41. Rxa7 {[%clk 0:00:09]}  e5 {[%clk 0:01:25]} 42. g5 {[%clk 0:00:09]}  Re6 {[%clk 0:01:24]} 43. g6 {[%clk 0:00:09]}  e4 {[%clk 0:01:24]} 44. Kg5 {[%clk 0:00:09]}  e3 {[%clk 0:01:22]} 45. h6 {[%clk 0:00:09]}  Kf8 {[%clk 0:01:22]} 46. Ra8+ {[%clk 0:00:09]}  Ke7 {[%clk 0:01:21]} 47. h7 {[%clk 0:00:09]}  e2 {[%clk 0:01:17]} 48. h8=Q {[%clk 0:00:09]}  e1=Q {[%clk 0:01:16]} 49. Qd8# {[%clk 0:00:09]} 1-0


[Site "https://www.chess.com"]

[Event "Titled Tuesday Blitz February 07 Early 2023"]
[White "Smith, Garrett L"]
[Black "Fernandez Siles, Luis"]
[WhiteFideId "2024829"]
[BlackFideId "2209420"]
[WhiteElo "2047"]
[BlackElo "2218"]
[Result "0-1"]
[Round "04"]
[TimeControl "180+2"]
[Date "2023.02.07"]
[WhiteClock "0:00:58"]
[BlackClock "0:00:38"]

1. e4 {[%clk 0:03:00]}  c5 {[%clk 0:02:58]} 2. a3 {[%clk 0:03:00]}  g6 {[%clk 0:02:56]} 3. b4 {[%clk 0:03:00]}  Bg7 {[%clk 0:02:55]} 4. Nc3 {[%clk 0:03:01]}  d6 {[%clk 0:02:43]} 5. Nf3 {[%clk 0:03:00]}  Nc6 {[%clk 0:02:42]} 6. bxc5 {[%clk 0:02:58]}  dxc5 {[%clk 0:02:42]} 7. Bc4 {[%clk 0:02:56]}  Nf6 {[%clk 0:02:37]} 8. Rb1 {[%clk 0:02:46]}  O-O {[%clk 0:02:35]} 9. O-O {[%clk 0:02:45]}  Nd4 {[%clk 0:02:32]} 10. Be2 {[%clk 0:02:15]}  b6 {[%clk 0:02:23]} 11. d3 {[%clk 0:02:14]}  Bb7 {[%clk 0:02:04]} 12. Bd2 {[%clk 0:02:14]}  Nd7 {[%clk 0:01:59]} 13. Nxd4 {[%clk 0:02:07]}  cxd4 {[%clk 0:01:58]} 14. Na2 {[%clk 0:02:06]}  Nc5 {[%clk 0:01:53]} 15. f4 {[%clk 0:02:02]}  Rc8 {[%clk 0:01:48]} 16. Nc1 {[%clk 0:01:58]}  Na4 {[%clk 0:01:43]} 17. Nb3 {[%clk 0:01:47]}  Qc7 {[%clk 0:01:39]} 18. Na1 {[%clk 0:01:29]}  Nc3 {[%clk 0:01:35]} 19. Bxc3 {[%clk 0:01:29]}  dxc3 {[%clk 0:01:36]} 20. Nb3 {[%clk 0:01:29]}  a5 {[%clk 0:01:34]} 21. Bg4 {[%clk 0:01:28]}  e6 {[%clk 0:01:33]} 22. e5 {[%clk 0:01:23]}  a4 {[%clk 0:01:32]} 23. Nc1 {[%clk 0:01:22]}  Qc5+ {[%clk 0:01:32]} 24. Kh1 {[%clk 0:01:22]}  Rfd8 {[%clk 0:01:17]} 25. Qe1 {[%clk 0:01:18]}  h5 {[%clk 0:01:11]} 26. Bf3 {[%clk 0:01:17]}  Bxf3 {[%clk 0:01:11]} 27. Rxf3 {[%clk 0:01:17]}  Rc6 {[%clk 0:01:09]} 28. Rb4 {[%clk 0:01:17]}  Qd5 {[%clk 0:01:07]} 29. Ne2 {[%clk 0:01:15]}  b5 {[%clk 0:01:06]} 30. Nxc3 {[%clk 0:01:14]}  Qc5 {[%clk 0:00:59]} 31. Nxb5 {[%clk 0:01:06]}  Qxc2 {[%clk 0:00:58]} 32. Nd6 {[%clk 0:01:03]}  Bf8 {[%clk 0:00:50]} 33. Rc4 {[%clk 0:01:03]}  Rxc4 {[%clk 0:00:50]} 34. dxc4 {[%clk 0:00:59]}  Bxd6 {[%clk 0:00:47]} 35. Rc3 {[%clk 0:00:58]}  Bb4 {[%clk 0:00:38]} 36. axb4 {[%clk 0:00:58]} 0-1


[Site "https://www.chess.com"]

[Event "Titled Tuesday Blitz February 07 Early 2023"]
[White "Kirillov, Dmitry"]
[Black "Ardila, Oscar Humberto"]
[WhiteFideId "34180572"]
[BlackFideId "4404742"]
[WhiteElo "2179"]
[BlackElo "1982"]
[Result "0-1"]
[Round "04"]
[TimeControl "180+2"]
[Date "2023.02.07"]
[WhiteClock "0:00:01"]
[BlackClock "0:00:28"]

1. e4 {[%clk 0:03:00]}  e5 {[%clk 0:02:59]} 2. Nf3 {[%clk 0:03:00]}  Nf6 {[%clk 0:02:59]} 3. Nxe5 {[%clk 0:02:59]}  d6 {[%clk 0:02:59]} 4. Nf3 {[%clk 0:02:59]}  Nxe4 {[%clk 0:02:59]} 5. Nc3 {[%clk 0:03:00]}  Nxc3 {[%clk 0:02:58]} 6. dxc3 {[%clk 0:03:01]}  Be7 {[%clk 0:02:56]} 7. Bf4 {[%clk 0:02:59]}  O-O {[%clk 0:02:56]} 8. Qd2 {[%clk 0:03:00]}  Nd7 {[%clk 0:02:57]} 9. O-O-O {[%clk 0:03:00]}  Nf6 {[%clk 0:02:57]} 10. Bd3 {[%clk 0:02:51]}  c5 {[%clk 0:02:57]} 11. h4 {[%clk 0:02:37]}  b5 {[%clk 0:02:57]} 12. Ng5 {[%clk 0:02:28]}  Qa5 {[%clk 0:02:56]} 13. Kb1 {[%clk 0:02:20]}  Bb7 {[%clk 0:02:50]} 14. Qe2 {[%clk 0:02:12]}  Bd5 {[%clk 0:02:17]} 15. Qxe7 {[%clk 0:02:01]}  Qxa2+ {[%clk 0:02:16]} 16. Kc1 {[%clk 0:02:01]}  b4 {[%clk 0:02:07]} 17. c4 {[%clk 0:01:30]}  Qa1+ {[%clk 0:01:40]} 18. Kd2 {[%clk 0:01:30]}  Qxb2 {[%clk 0:01:41]} 19. Be3 {[%clk 0:01:06]}  Qc3+ {[%clk 0:01:38]} 20. Ke2 {[%clk 0:01:06]}  Bxc4 {[%clk 0:01:37]} 21. Rd2 {[%clk 0:00:25]}  Bxd3+ {[%clk 0:01:18]} 22. cxd3 {[%clk 0:00:25]}  Rad8 {[%clk 0:01:10]} 23. Ne4 {[%clk 0:00:15]}  Nxe4 {[%clk 0:01:07]} 24. Qxe4 {[%clk 0:00:10]}  Rfe8 {[%clk 0:01:05]} 25. Qd5 {[%clk 0:00:05]}  a5 {[%clk 0:01:01]} 26. Qc4 {[%clk 0:00:04]}  Qe5 {[%clk 0:00:52]} 27. Kd1 {[%clk 0:00:03]}  a4 {[%clk 0:00:50]} 28. Bf4 {[%clk 0:00:01]}  Qa1+ {[%clk 0:00:47]} 29. Qc1 {[%clk 0:00:01]}  Qd4 {[%clk 0:00:42]} 30. g3 {[%clk 0:00:01]}  b3 {[%clk 0:00:42]} 31. Qc4 {[%clk 0:00:01]}  Qa1+ {[%clk 0:00:40]} 32. Qc1 {[%clk 0:00:01]}  Qd4 {[%clk 0:00:30]} 33. Be3 {[%clk 0:00:02]}  Qd5 {[%clk 0:00:29]} 34. Re1 {[%clk 0:00:01]}  a3 {[%clk 0:00:28]} 35. Qc2 {[%clk 0:00:01]} 0-1


[Site "https://www.chess.com"]

[Event "Titled Tuesday Blitz February 07 Early 2023"]
[White "Von Buelow, Georg"]
[Black "Sahil, Tickoo"]
[WhiteFideId "4620658"]
[BlackFideId "5019710"]
[WhiteElo "2345"]
[BlackElo "2186"]
[Result "1-0"]
[Round "04"]
[TimeControl "180+2"]
[Date "2023.02.07"]
[WhiteClock "0:00:29"]
[BlackClock "0:00:48"]

1. e4 {[%clk 0:02:59]}  c5 {[%clk 0:02:59]} 2. Nf3 {[%clk 0:02:58]}  d5 {[%clk 0:02:59]} 3. exd5 {[%clk 0:02:55]}  Nf6 {[%clk 0:02:59]} 4. c4 {[%clk 0:02:54]}  e6 {[%clk 0:02:59]} 5. dxe6 {[%clk 0:02:54]}  Bxe6 {[%clk 0:03:00]} 6. Nc3 {[%clk 0:02:54]}  Nc6 {[%clk 0:03:00]} 7. Be2 {[%clk 0:02:54]}  Bd6 {[%clk 0:02:59]} 8. O-O {[%clk 0:02:54]}  a6 {[%clk 0:03:00]} 9. d3 {[%clk 0:02:54]}  Qc7 {[%clk 0:03:00]} 10. Bg5 {[%clk 0:02:52]}  O-O-O {[%clk 0:02:59]} 11. Re1 {[%clk 0:02:35]}  h6 {[%clk 0:02:58]} 12. Bxf6 {[%clk 0:02:34]}  gxf6 {[%clk 0:02:59]} 13. Kh1 {[%clk 0:02:30]}  Rhg8 {[%clk 0:02:50]} 14. Ne4 {[%clk 0:02:25]}  Be5 {[%clk 0:02:38]} 15. Nxe5 {[%clk 0:02:15]}  fxe5 {[%clk 0:02:38]} 16. Nxc5 {[%clk 0:02:03]}  Nd4 {[%clk 0:02:35]} 17. Nxe6 {[%clk 0:01:58]}  Nxe6 {[%clk 0:02:34]} 18. Bg4 {[%clk 0:01:48]}  Kb8 {[%clk 0:02:30]} 19. Bxe6 {[%clk 0:01:46]}  fxe6 {[%clk 0:02:31]} 20. Qe2 {[%clk 0:01:41]}  Rg5 {[%clk 0:02:27]} 21. Rad1 {[%clk 0:01:26]}  Qc6 {[%clk 0:02:27]} 22. Qe4 {[%clk 0:01:21]}  Qb6 {[%clk 0:02:20]} 23. Re2 {[%clk 0:01:16]}  Rdg8 {[%clk 0:02:14]} 24. g3 {[%clk 0:01:14]}  h5 {[%clk 0:02:13]} 25. Kg2 {[%clk 0:01:08]}  Ka8 {[%clk 0:02:07]} 26. b3 {[%clk 0:01:04]}  Rf8 {[%clk 0:02:02]} 27. Rdd2 {[%clk 0:00:58]}  Rgf5 {[%clk 0:02:00]} 28. d4 {[%clk 0:00:53]}  exd4 {[%clk 0:01:58]} 29. Qxd4 {[%clk 0:00:54]}  Qc6+ {[%clk 0:01:52]} 30. Kg1 {[%clk 0:00:53]}  h4 {[%clk 0:01:37]} 31. Qxh4 {[%clk 0:00:50]}  Qc8 {[%clk 0:01:27]} 32. Qe4 {[%clk 0:00:48]}  R5f6 {[%clk 0:01:22]} 33. Rd6 {[%clk 0:00:46]}  Ka7 {[%clk 0:01:18]} 34. Rxe6 {[%clk 0:00:43]}  Rxe6 {[%clk 0:01:18]} 35. Qxe6 {[%clk 0:00:44]}  Qd8 {[%clk 0:01:10]} 36. Qe3+ {[%clk 0:00:40]}  Ka8 {[%clk 0:01:09]} 37. Rd2 {[%clk 0:00:37]}  Qf6 {[%clk 0:01:07]} 38. Kg2 {[%clk 0:00:34]}  Qc6+ {[%clk 0:01:06]} 39. Rd5 {[%clk 0:00:33]}  Qf6 {[%clk 0:01:04]} 40. h4 {[%clk 0:00:32]}  Qf7 {[%clk 0:01:02]} 41. Re5 {[%clk 0:00:31]}  Qg6 {[%clk 0:00:59]} 42. Re6 {[%clk 0:00:29]}  Qf7 {[%clk 0:00:59]} 43. Re7 {[%clk 0:00:29]}  Qf6 {[%clk 0:00:57]} 44. Re4 {[%clk 0:00:28]}  Qc6 {[%clk 0:00:56]} 45. Kg1 {[%clk 0:00:27]}  Rd8 {[%clk 0:00:55]} 46. Qe2 {[%clk 0:00:26]}  Qg6 {[%clk 0:00:47]} 47. Re6 {[%clk 0:00:22]}  Qb1+ {[%clk 0:00:46]} 48. Kg2 {[%clk 0:00:22]}  Qh7 {[%clk 0:00:45]} 49. Re8 {[%clk 0:00:22]}  Rxe8 {[%clk 0:00:44]} 50. Qxe8+ {[%clk 0:00:21]}  Ka7 {[%clk 0:00:45]} 51. Qe3+ {[%clk 0:00:22]}  Ka8 {[%clk 0:00:46]} 52. Qf3 {[%clk 0:00:22]}  Qe7 {[%clk 0:00:45]} 53. h5 {[%clk 0:00:22]}  Qe6 {[%clk 0:00:43]} 54. Qe3 {[%clk 0:00:20]}  Qc6+ {[%clk 0:00:41]} 55. Kg1 {[%clk 0:00:21]}  Qf6 {[%clk 0:00:39]} 56. h6 {[%clk 0:00:21]}  Qa1+ {[%clk 0:00:39]} 57. Kg2 {[%clk 0:00:21]}  Qh8 {[%clk 0:00:39]} 58. Qg5 {[%clk 0:00:19]}  Qe8 {[%clk 0:00:37]} 59. Qf5 {[%clk 0:00:17]}  Qc6+ {[%clk 0:00:37]} 60. Qf3 {[%clk 0:00:17]}  Qxh6 {[%clk 0:00:36]} 61. Qd5 {[%clk 0:00:17]}  Qg6 {[%clk 0:00:36]} 62. c5 {[%clk 0:00:16]}  Qc2 {[%clk 0:00:36]} 63. a4 {[%clk 0:00:15]}  Qc3 {[%clk 0:00:34]} 64. Qd8+ {[%clk 0:00:14]}  Ka7 {[%clk 0:00:35]} 65. Qb6+ {[%clk 0:00:15]}  Ka8 {[%clk 0:00:35]} 66. c6 {[%clk 0:00:15]}  bxc6 {[%clk 0:00:36]} 67. Qxa6+ {[%clk 0:00:15]}  Kb8 {[%clk 0:00:36]} 68. Qb6+ {[%clk 0:00:16]}  Kc8 {[%clk 0:00:37]} 69. a5 {[%clk 0:00:17]}  Qc2 {[%clk 0:00:30]} 70. a6 {[%clk 0:00:15]}  Qe4+ {[%clk 0:00:31]} 71. Kg1 {[%clk 0:00:16]}  Qe1+ {[%clk 0:00:31]} 72. Kh2 {[%clk 0:00:15]}  Kd7 {[%clk 0:00:30]} 73. a7 {[%clk 0:00:15]}  Qa1 {[%clk 0:00:29]} 74. Qb7+ {[%clk 0:00:15]}  Kd6 {[%clk 0:00:30]} 75. a8=Q {[%clk 0:00:15]}  Qxa8 {[%clk 0:00:29]} 76. Qxa8 {[%clk 0:00:15]}  Kc5 {[%clk 0:00:30]} 77. Qa7+ {[%clk 0:00:15]}  Kb5 {[%clk 0:00:31]} 78. Qe3 {[%clk 0:00:15]}  c5 {[%clk 0:00:32]} 79. Qe4 {[%clk 0:00:15]}  Kb6 {[%clk 0:00:33]} 80. Qc4 {[%clk 0:00:16]}  Kc6 {[%clk 0:00:33]} 81. b4 {[%clk 0:00:16]}  Kd6 {[%clk 0:00:34]} 82. Qxc5+ {[%clk 0:00:16]}  Kd7 {[%clk 0:00:34]} 83. f4 {[%clk 0:00:17]}  Ke6 {[%clk 0:00:35]} 84. g4 {[%clk 0:00:18]}  Kd7 {[%clk 0:00:36]} 85. g5 {[%clk 0:00:19]}  Ke6 {[%clk 0:00:37]} 86. f5+ {[%clk 0:00:19]}  Kf7 {[%clk 0:00:37]} 87. Kg3 {[%clk 0:00:20]}  Ke8 {[%clk 0:00:38]} 88. Kf4 {[%clk 0:00:21]}  Kd7 {[%clk 0:00:39]} 89. Ke4 {[%clk 0:00:22]}  Kd8 {[%clk 0:00:40]} 90. Kd4 {[%clk 0:00:23]}  Kd7 {[%clk 0:00:41]} 91. b5 {[%clk 0:00:23]}  Ke8 {[%clk 0:00:41]} 92. Qc7 {[%clk 0:00:23]}  Kf8 {[%clk 0:00:42]} 93. f6 {[%clk 0:00:24]}  Kg8 {[%clk 0:00:43]} 94. g6 {[%clk 0:00:25]}  Kf8 {[%clk 0:00:43]} 95. Kd5 {[%clk 0:00:26]}  Ke8 {[%clk 0:00:44]} 96. Kc6 {[%clk 0:00:27]}  Kf8 {[%clk 0:00:44]} 97. Kb7 {[%clk 0:00:27]}  Kg8 {[%clk 0:00:45]} 98. Kc8 {[%clk 0:00:28]}  Kf8 {[%clk 0:00:46]} 99. b6 {[%clk 0:00:28]}  Kg8 {[%clk 0:00:47]} 100. b7 {[%clk 0:00:29]}  Kf8 {[%clk 0:00:48]} 101. b8=Q {[%clk 0:00:29]}  Ke8 {[%clk 0:00:48]} 102. Kb7# {[%clk 0:00:29]} 1-0


[Site "https://www.chess.com"]

[Event "Titled Tuesday Blitz February 07 Early 2023"]
[White "Winkels, Marcel"]
[Black "Bernat, David"]
[WhiteFideId "1003887"]
[BlackFideId "2099225"]
[WhiteElo "1960"]
[BlackElo "1862"]
[Result "0-1"]
[Round "04"]
[TimeControl "180+2"]
[Date "2023.02.07"]
[WhiteClock "0:01:13"]
[BlackClock "0:01:16"]

1. e4 {[%clk 0:03:00]}  c5 {[%clk 0:03:00]} 2. Nf3 {[%clk 0:03:00]}  g6 {[%clk 0:03:00]} 3. d4 {[%clk 0:02:59]}  cxd4 {[%clk 0:03:01]} 4. Nxd4 {[%clk 0:02:59]}  Nc6 {[%clk 0:03:01]} 5. c4 {[%clk 0:02:59]}  Nf6 {[%clk 0:03:01]} 6. Nc3 {[%clk 0:02:57]}  d6 {[%clk 0:03:02]} 7. Be3 {[%clk 0:02:50]}  Ng4 {[%clk 0:03:02]} 8. Nxc6 {[%clk 0:02:47]}  bxc6 {[%clk 0:03:03]} 9. Bf4 {[%clk 0:02:40]}  Qb6 {[%clk 0:03:02]} 10. Qd2 {[%clk 0:02:36]}  Bg7 {[%clk 0:03:02]} 11. Be2 {[%clk 0:02:35]}  Qxf2+ {[%clk 0:03:00]} 12. Kd1 {[%clk 0:02:34]}  Qxg2 {[%clk 0:02:47]} 13. Kc2 {[%clk 0:02:34]}  Bxc3 {[%clk 0:02:36]} 14. bxc3 {[%clk 0:02:31]}  Nf2 {[%clk 0:02:22]} 15. Bd3 {[%clk 0:02:15]}  Qf3 {[%clk 0:02:04]} 16. Rhf1 {[%clk 0:02:06]}  Qxd3+ {[%clk 0:01:53]} 17. Qxd3 {[%clk 0:02:05]}  Nxd3 {[%clk 0:01:53]} 18. Kxd3 {[%clk 0:02:05]}  f5 {[%clk 0:01:47]} 19. e5 {[%clk 0:02:02]}  dxe5 {[%clk 0:01:46]} 20. Bxe5 {[%clk 0:02:02]}  O-O {[%clk 0:01:47]} 21. Rad1 {[%clk 0:01:59]}  Rd8+ {[%clk 0:01:46]} 22. Kc2 {[%clk 0:01:59]}  Ba6 {[%clk 0:01:46]} 23. Rf4 {[%clk 0:01:53]}  Rxd1 {[%clk 0:01:45]} 24. Kxd1 {[%clk 0:01:53]}  Rd8+ {[%clk 0:01:46]} 25. Rd4 {[%clk 0:01:52]}  Rxd4+ {[%clk 0:01:40]} 26. Bxd4 {[%clk 0:01:51]}  Bxc4 {[%clk 0:01:39]} 27. Bxa7 {[%clk 0:01:49]}  Bxa2 {[%clk 0:01:38]} 28. Bb8 {[%clk 0:01:47]}  Kf7 {[%clk 0:01:35]} 29. Kd2 {[%clk 0:01:48]}  Ke6 {[%clk 0:01:34]} 30. Ke3 {[%clk 0:01:48]}  Kd5 {[%clk 0:01:35]} 31. Kf4 {[%clk 0:01:47]}  Bb1 {[%clk 0:01:28]} 32. h4 {[%clk 0:01:46]}  h6 {[%clk 0:01:27]} 33. Bc7 {[%clk 0:01:43]}  e5+ {[%clk 0:01:24]} 34. Ke3 {[%clk 0:01:35]}  g5 {[%clk 0:01:23]} 35. hxg5 {[%clk 0:01:34]}  hxg5 {[%clk 0:01:24]} 36. Bd8 {[%clk 0:01:34]}  g4 {[%clk 0:01:23]} 37. Bg5 {[%clk 0:01:23]}  f4+ {[%clk 0:01:19]} 38. Kf2 {[%clk 0:01:18]}  g3+ {[%clk 0:01:16]} 39. Kf3 {[%clk 0:01:17]}  Be4+ {[%clk 0:01:16]} 40. Ke2 {[%clk 0:01:16]}  f3+ {[%clk 0:01:16]} 41. Kf1 {[%clk 0:01:13]}  Bd3+ {[%clk 0:01:16]} 0-1


[Site "https://www.chess.com"]